bitfinex/quotes_ETHUSD_20250620
["timestamp","ask_amount","ask_price","bid_price","bid_amount"]
[1750380620940,16.456,2531.7,2531.6,3.9500711]
[1750380621441,6.5134,2531.7,2531.6,3.9500711]
[1750380622145,6.456,2531.7,2531.6,3.9500711]
[1750380622547,10.0574,2532.0,2531.9,3.94960306]
[1750380622739,18.48232329,2532.0,2531.9,3.94960306]
[1750380623047,12.02832329,2532.0,2531.9,3.94960306]
[1750380623218,18.48032329,2532.0,2531.9,3.94960306]
[1750380623848,12.02832329,2532.0,2531.9,3.94960306]
[1750380624049,18.48032329,2532.0,2531.9,3.94960306]
[1750380625457,16.452,2532.0,2531.9,3.94960306]
[1750380625660,16.5094,2532.0,2531.9,3.94960306]
[1750380626256,16.5094,2532.0,2531.8,3.94967901]
[1750380626556,0.0574,2531.9,2531.8,3.94975906]
[1750380627621,0.7794,2531.8,2531.6,3.94993215]
[1750380627934,17.58334,2531.7,2531.6,3.9500711]
[1750380629261,17.58334,2531.7,2531.4,3.95023849]
[1750380629262,10.0574,2531.6,2531.4,3.95023849]
[1750380629438,7.2343,2531.5,2531.4,3.95023849]
[1750380629632,7.2917,2531.5,2531.4,3.95023849]
[1750380631629,17.2917,2531.5,2531.4,3.95023849]
[1750380632162,0.0574,2531.4,2531.3,3.9504539]
[1750380632975,10.0574,2531.4,2531.0,3.9509546]
[1750380633174,0.8269,2531.1,2530.9,3.95104919]
[1750380633364,0.0574,2531.0,2530.9,3.95104919]
[1750380634682,10.0574,2531.0,2530.9,3.95104919]
[1750380635887,0.0574,2530.9,2530.5,0.8223]
[1750380636184,6.45,2530.9,2530.8,3.95131974]
[1750380638595,6.5075,2530.9,2530.8,3.95131974]
[1750380639385,6.5075,2530.9,2530.7,3.95138748]
[1750380639573,0.0575,2530.8,2530.7,3.95138748]
[1750380649798,0.0575,2530.8,2530.4,3.95192464]
[1750380649799,0.8178,2530.7,2530.5,3.95171795]
[1750380649979,0.0575,2530.6,2530.5,3.95171795]
[1750380650185,6.438,2530.6,2530.4,3.95185066]
[1750380650515,0.0575,2530.5,2530.4,3.95185066]
[1750380651632,0.78883,2530.5,2530.3,3.95202293]
[1750380651783,0.78883,2530.5,2530.2,3.95216104]
[1750380651784,0.0575,2530.4,2530.2,3.95216104]
[1750380651990,10.73133,2530.5,2530.2,3.95223174]
[1750380652295,0.8178,2530.3,2530.1,3.95234723]
[1750380652512,0.0575,2530.2,2530.0,3.9525026]
[1750380652900,17.2578,2530.3,2530.0,3.9525026]
[1750380653497,0.0575,2530.2,2530.0,3.9525026]
[1750380654009,17.2578,2530.3,2530.0,3.9525026]
[1750380654340,0.0575,2530.2,2530.0,3.9525026]
[1750380654542,19.66311074,2530.3,2530.0,3.9525026]
[1750380654697,19.72061074,2530.3,2530.1,3.95232054]
[1750380654905,0.0575,2530.2,2529.9,3.95263188]
[1750380655098,0.0575,2530.2,2530.1,3.95241294]
[1750380655517,16.4965,2530.2,2530.1,3.95241294]
[1750380655841,16.439,2530.2,2530.1,3.95241294]
[1750380656214,10.0,2530.2,2530.1,4.72851294]
[1750380658816,1.665,2530.6,2530.5,3.95178818]
[1750380659055,9.35727,2530.6,2530.5,3.95178818]
[1750380659215,9.41477,2530.6,2530.5,3.95178818]
[1750380660358,8.105,2530.6,2530.5,3.95178818]
[1750380660552,1.7225,2530.8,2530.7,3.95147587]
[1750380660758,8.1615,2530.8,2530.7,3.95147587]
[1750380661055,8.104,2530.8,2530.6,3.9515451]
[1750380661266,0.0575,2530.7,2530.6,3.9515451]
[1750380662549,16.4955,2530.7,2530.6,3.9515451]
[1750380664533,18.39264,2530.7,2530.6,3.9515451]
[1750380666661,11.95464,2530.7,2530.6,3.9515451]
[1750380666954,18.39164,2530.7,2530.6,3.9515451]
[1750380669226,0.8087,2530.5,2530.3,3.95194977]
[1750380669433,6.4904,2530.4,2530.3,3.95194977]
[1750380672229,6.434,2530.4,2530.3,3.95194977]
[1750380673866,6.4904,2530.4,2530.3,3.95194977]
[1750380674028,7.92935181,2530.4,2530.3,3.95194977]
[1750380675685,6.4904,2530.4,2530.3,3.95194977]
[1750380678773,0.0564,2530.4,2530.3,3.95194977]
[1750380678978,0.0564,2531.1,2530.4,0.7738]
[1750380679146,16.43,2531.0,2530.9,3.95107258]
[1750380679347,16.4864,2531.0,2530.9,3.95107258]
[1750380679547,18.377,2531.0,2530.9,3.95107258]
[1750380679962,11.8906,2531.0,2530.9,3.95107258]
[1750380680283,16.443,2531.0,2530.9,3.95107258]
[1750380680458,10.0,2531.0,2530.9,3.95107258]
[1750380680871,1.7154,2531.2,2531.1,3.9508514]
[1750380681066,1.7154,2531.2,2531.0,3.95092023]
[1750380681067,10.0,2531.1,2531.0,3.95092023]
[1750380681373,10.0564,2531.1,2531.0,3.95092023]
[1750380681799,10.0,2531.1,2530.9,3.95108832]
[1750380682094,6.4984,2531.0,2530.9,3.95108832]
[1750380683678,16.4984,2531.0,2530.9,3.95108832]
[1750380684082,16.4984,2531.0,2530.5,0.7987]
[1750380684083,10.0,2530.9,2530.5,0.7987]
[1750380684288,16.4984,2531.0,2529.7,3.95291926]
[1750380684289,6.4954,2530.8,2530.1,0.7987]
[1750380684441,6.4954,2530.8,2530.7,3.95147587]
[1750380685082,16.4954,2530.8,2530.7,3.95147587]
[1750380685467,16.439,2530.8,2530.7,3.95147587]
[1750380686245,10.0,2530.8,2530.7,3.95147587]
[1750380690971,10.0564,2530.8,2530.7,3.95147587]
[1750380692560,10.0,2530.8,2530.7,3.95147587]
[1750380694852,0.0564,2531.5,2531.3,3.95044108]
[1750380695051,0.0564,2531.8,2531.4,0.7533]
[1750380695302,6.439,2531.7,2531.6,3.9500711]
[1750380695504,16.4954,2531.7,2531.6,3.9500711]
[1750380695707,17.43822095,2531.7,2531.6,3.9500711]
[1750380696172,7.43822095,2531.7,2531.6,3.9500711]
[1750380697154,0.99922095,2531.7,2531.6,3.9500711]
[1750380697351,7.43622095,2531.7,2531.6,3.9500711]
[1750380698411,7.43522095,2531.7,2531.6,3.9500711]
[1750380699001,0.0581,2531.6,2531.5,3.95010628]
[1750380705604,10.0,2531.8,2531.6,3.9500711]
[1750380705806,10.0,2531.8,2531.7,3.94991507]
[1750380705807,10.0581,2531.8,2531.7,3.94991507]
[1750380706003,18.44890938,2531.8,2531.7,3.94991507]
[1750380706205,10.0,2531.8,2531.7,3.94991507]
[1750380706410,16.429,2531.8,2531.7,3.94991507]
[1750380706902,10.0,2531.8,2531.7,3.94991507]
[1750380707074,16.429,2531.8,2531.7,3.94991507]
[1750380707471,16.4871,2531.8,2531.7,3.94991507]
[1750380707899,16.4871,2531.8,2531.6,3.9500439]
[1750380708101,0.0581,2531.7,2531.6,3.9500439]
[1750380711740,16.4871,2531.8,2531.7,3.94991507]
[1750380714443,19.50279227,2531.8,2531.5,3.95016052]
[1750380714746,0.0581,2531.7,2531.6,3.94999675]
[1750380715946,0.0581,2531.7,2531.4,3.95030374]
[1750380716102,0.0581,2531.7,2531.6,3.9500711]
[1750380716306,16.4831,2531.7,2531.6,3.9500711]
[1750380720340,10.0,2531.7,2531.6,3.9500711]
[1750380720587,16.425,2531.7,2531.6,3.9500711]
[1750380723043,16.4831,2531.7,2531.6,3.9500711]
[1750380723241,10.0581,2531.6,2531.5,3.95009699]
[1750380724783,10.0581,2531.6,2531.1,0.7973]
[1750380724994,0.0581,2531.4,2531.3,3.95046124]
[1750380728313,10.0581,2531.4,2531.3,3.95046124]
[1750380731011,0.0581,2531.4,2531.3,3.95046124]
[1750380731202,6.4831,2531.4,2531.3,3.95046124]
[1750380731893,9.09601,2531.4,2531.3,3.95046124]
[1750380733029,7.2819,2531.4,2531.3,3.95046124]
[1750380735706,2.4181,2531.6,2531.4,3.95025375]
[1750380735913,6.425,2531.5,2531.4,3.95025375]
[1750380736213,6.4843,2531.5,2531.4,3.95025375]
[1750380738442,6.425,2531.5,2531.4,3.95025375]
[1750380739250,10.7601,2531.8,2531.4,3.95025375]
[1750380739411,6.4833,2531.7,2531.6,3.95000551]
[1750380739942,6.4833,2531.7,2531.5,3.95013274]
[1750380740243,0.0593,2531.6,2531.5,3.95013274]
[1750380745254,10.0593,2531.6,2531.5,3.95013274]
[1750380746189,10.0593,2531.6,2531.4,3.95029623]
[1750380746470,16.424,2531.5,2531.4,3.95029623]
[1750380746669,16.4833,2531.5,2531.4,3.95029623]
[1750380749570,10.0,2531.4,2531.3,3.95052261]
[1750380749774,10.0593,2531.4,2531.3,3.95052261]
[1750380749973,0.0593,2531.4,2531.3,3.95052261]
[1750380750494,0.0593,2531.4,2531.1,3.95078542]
[1750380750784,18.89773,2531.5,2531.1,3.95078542]
[1750380750785,10.0593,2531.2,2531.1,3.95084824]
[1750380754902,10.0593,2531.2,2531.0,3.95095071]
[1750380755105,6.4833,2531.1,2531.0,3.95095071]
[1750380755804,6.424,2531.1,2531.0,3.95095071]
[1750380757799,6.4854,2531.1,2531.0,3.95095071]
[1750380758733,16.4854,2531.1,2531.0,3.95095071]
[1750380762622,16.424,2531.1,2531.0,3.95095071]
[1750380763014,16.4854,2531.1,2531.0,3.95095071]
[1750380764923,16.424,2531.1,2531.0,3.95095071]
[1750380766022,16.424,2531.1,2531.0,4.71215071]
[1750380766225,10.0,2531.1,2531.0,5.58243035]
[1750380766430,10.0,2531.1,2531.0,5.61833035]
[1750380766988,10.0,2531.1,2531.0,5.58243035]
[1750380771797,10.0,2531.1,2531.0,4.82123035]
[1750380772000,10.0,2531.1,2531.0,3.95095071]
[1750380772524,10.0614,2531.1,2531.0,3.95095071]
[1750380775030,16.4844,2531.1,2531.0,3.95095071]
[1750380780266,6.4844,2531.1,2531.0,3.95095071]
[1750380781729,16.4844,2531.1,2531.0,3.95095071]
[1750380788265,10.0614,2531.1,2531.0,3.95095071]
[1750380788564,16.4844,2531.1,2531.0,3.95095071]
[1750380788977,6.423,2531.1,2530.6,0.7881]
[1750380789173,0.0573,2531.0,2530.9,3.95105947]
[1750380789363,10.0573,2531.0,2530.9,3.95105947]
[1750380790392,10.0,2531.0,2530.9,3.95105947]
[1750380790671,0.0573,2531.2,2531.1,3.9508514]
[1750380790870,6.4793,2531.2,2531.1,3.9508514]
[1750380791556,0.0573,2531.2,2531.1,3.9508514]
[1750380791778,6.4793,2531.2,2531.1,3.9508514]
[1750380793189,10.753,2531.1,2530.6,0.7881]
[1750380793365,0.0573,2530.8,2530.5,3.95178818]
[1750380793686,10.0573,2530.9,2530.8,3.95131974]
[1750380795996,0.0573,2530.7,2530.5,3.95165331]
[1750380796206,16.422,2530.6,2530.5,3.95165331]
[1750380796408,16.4793,2530.6,2530.5,3.95165331]
[1750380796696,16.4793,2530.6,2530.4,3.95186518]
[1750380796697,10.0573,2530.5,2530.4,3.95186518]
[1750380797172,10.0573,2530.5,2529.1,4.77973828]
[1750380797173,0.55,2530.1,2529.1,4.77973828]
[1750380797355,0.8494,2530.0,2529.4,3.95350676]
[1750380797556,16.423,2529.9,2529.8,3.95276167]
[1750380798004,16.4803,2529.9,2529.8,3.95276167]
[1750380798280,16.4803,2529.9,2529.7,3.9529557]
[1750380798488,0.0573,2529.8,2529.7,3.9529557]
[1750380798955,0.0573,2529.8,2529.5,3.95320343]
[1750380799171,10.0,2529.6,2529.5,3.95335046]
[1750380799501,10.0573,2529.6,2529.5,3.95335046]
[1750380800418,10.0,2529.6,2529.5,3.95335046]
[1750380800830,10.0573,2529.6,2529.5,3.95335046]
[1750380802039,10.0,2529.6,2529.5,3.95335046]
[1750380803596,10.0573,2529.6,2529.5,3.95335046]
[1750380805297,10.0,2529.6,2529.5,3.95335046]
[1750380806090,10.0573,2529.6,2529.2,0.8294]
[1750380806309,16.4813,2529.5,2529.4,3.95342587]
[1750380807154,16.4813,2529.5,2529.2,3.95371535]
[1750380807155,16.424,2529.5,2529.3,3.9535883]
[1750380807463,0.0573,2529.4,2529.3,3.9535883]
[1750380809909,10.0,2529.5,2529.4,3.95350676]
[1750380810154,16.424,2529.5,2529.4,3.95350676]
[1750380811643,10.0,2529.5,2529.4,3.95350676]
[1750380811944,16.425,2529.5,2529.4,3.95350676]
[1750380813416,10.0,2529.5,2529.4,3.95350676]
[1750380813617,16.425,2529.5,2529.4,3.95350676]
[1750380820758,10.0,2529.5,2529.4,3.95350676]
[1750380820958,16.425,2529.5,2529.4,3.95350676]
[1750380825909,10.0,2529.5,2529.4,3.95350676]
[1750380826808,6.425,2529.7,2529.6,3.95319418]
[1750380827011,16.425,2529.7,2529.6,3.95319418]
[1750380827714,3.52775813,2530.1,2529.9,3.9527254]
[1750380827917,3.52775813,2530.1,2530.0,3.95256916]
[1750380828207,13.52775813,2530.1,2530.0,9.4540102]
[1750380828406,13.52775813,2530.1,2530.0,10.76661422]
[1750380828969,3.52775813,2530.1,2530.0,10.73071422]
[1750380829169,3.52775813,2530.1,2530.0,5.22927318]
[1750380830997,3.52775813,2530.1,2530.0,4.75236916]
[1750380836084,3.52775813,2530.1,2530.0,3.95256916]
[1750380839035,20.00845813,2530.1,2530.0,3.95256916]
[1750380839528,19.95175813,2530.1,2529.9,3.9526518]
[1750380839827,0.0567,2530.0,2529.9,3.9527254]
[1750380840024,0.0567,2529.8,2529.7,3.95291196]
[1750380840192,16.4797,2529.8,2529.7,3.95291196]
[1750380840935,10.0567,2529.7,2529.6,3.95313743]
[1750380841099,0.0567,2529.7,2529.6,3.95313743]
[1750380842829,6.423,2529.8,2529.7,3.9530379]
[1750380842995,6.4797,2529.8,2529.7,3.9530379]
[1750380850639,0.0567,2529.8,2529.7,3.9530379]
[1750380850839,16.4797,2529.8,2529.7,3.9530379]
[1750380860062,0.0571,2529.6,2529.0,7.94584104]
[1750380860266,0.0571,2529.6,2529.5,3.95335046]
[1750380860427,16.4801,2529.6,2529.5,3.95335046]
[1750380866041,10.0,2529.5,2529.4,3.95338974]
[1750380866357,10.0571,2529.5,2529.4,3.95338974]
[1750380867158,0.0571,2529.5,2529.4,3.95338974]
[1750380867362,10.0571,2529.5,2529.4,3.95338974]
[1750380867661,6.4801,2529.5,2529.4,3.95338974]
[1750380870964,16.4801,2529.5,2529.4,3.95338974]
[1750380878983,16.423,2529.5,2529.4,3.95338974]
[1750380880868,16.422,2529.5,2529.4,3.95338974]
[1750380882564,6.422,2529.5,2529.4,3.95338974]
[1750380882745,0.8098,2530.1,2530.0,3.95256916]
[1750380882943,7.2893,2530.1,2530.0,3.95256916]
[1750380883999,9.491,2530.7,2530.2,3.95225673]
[1750380884000,0.7608,2530.3,2530.2,3.95225673]
[1750380884148,7.2393,2530.3,2530.2,3.95225673]
[1750380884349,8.12863,2530.3,2530.2,3.95225673]
[1750380885446,6.4785,2530.3,2530.2,3.95225673]
[1750380888106,0.8406,2530.2,2530.1,3.95228076]
[1750380888397,17.2616,2530.2,2530.1,3.95228076]
[1750380890910,7.2041,2530.2,2530.0,3.95242068]
[1750380891119,0.77791,2530.1,2530.0,3.95242068]
[1750380892196,0.8091,2529.9,2529.3,0.818]
[1750380892431,0.8091,2529.9,2529.5,3.95322433]
[1750380892432,10.0575,2529.7,2529.5,3.95322433]
[1750380892579,16.4775,2529.6,2529.5,3.95322433]
[1750380893175,0.8093,2529.5,2529.3,3.95366306]
[1750380893416,0.0575,2529.3,2529.2,3.95381938]
[1750380893730,6.42,2529.4,2528.7,1.6889]
[1750380893731,6.4775,2529.4,2529.3,3.95366306]
[1750380894309,17.20618,2529.4,2529.3,3.95366306]
[1750380895640,0.0575,2529.3,2529.2,3.9537516]
[1750380896425,10.0575,2529.3,2529.2,3.9537516]
[1750380897600,10.0575,2529.3,2529.1,3.95388716]
[1750380897837,16.4775,2529.2,2529.1,3.95388716]
[1750380899551,10.0,2529.1,2528.9,3.95421586]
[1750380899833,0.0575,2528.7,2528.6,3.95466497]
[1750380900016,10.0575,2528.7,2528.5,3.9547866]
[1750380900216,0.0575,2528.6,2528.5,3.9547866]
[1750380900422,10.0,2528.7,2528.6,3.95475757]
[1750380900719,10.0575,2528.7,2528.6,3.95475757]
[1750380906337,0.0575,2528.7,2528.6,3.95475757]
[1750380906522,16.421,2528.9,2528.8,3.95444479]
[1750380906724,0.0575,2529.1,2528.7,3.95460117]
[1750380907034,1.7105,2529.1,2529.0,3.95413206]
[1750380907213,18.1325,2529.1,2529.0,3.95413206]
[1750380909215,10.00457345,2529.7,2529.0,3.95413206]
[1750380909216,0.0598,2529.4,2529.3,3.95366306]
[1750380909550,16.4808,2529.4,2529.3,3.95366306]
[1750380915235,16.421,2529.4,2529.3,3.95366306]
[1750380916052,1.15563766,2529.7,2529.3,3.95366306]
[1750380916053,0.7591,2529.7,2529.3,3.95366306]
[1750380916363,1.7128,2529.8,2529.7,3.9530379]
[1750380916513,1.7128,2529.8,2529.5,3.95326166]
[1750380916514,10.0598,2529.7,2529.6,3.95310589]
[1750380916712,6.4808,2529.7,2529.6,3.95310589]
[1750380917217,0.0598,2529.6,2529.3,3.95366306]
[1750380917457,0.0598,2529.6,2529.4,3.95335679]
[1750380917458,16.4808,2529.5,2529.4,3.95335679]
[1750380940109,10.0,2529.5,2529.4,3.95335679]
[1750380940247,16.419,2529.5,2529.4,3.95335679]
[1750380941684,16.4796,2529.5,2529.4,3.95335679]
[1750380942672,16.4796,2529.5,2529.4,3.95350676]
[1750380942891,18.89125505,2529.5,2529.4,3.95350676]
[1750380944296,10.0,2529.4,2529.2,3.95366403]
[1750380944502,16.4796,2529.3,2529.2,3.95366403]
[1750380945291,10.0,2529.2,2529.1,3.953904]
[1750380945492,0.0606,2529.2,2529.1,3.953904]
[1750380947092,6.419,2529.3,2529.1,3.953904]
[1750380947263,10.0,2529.7,2529.3,3.95366306]
[1750380947459,0.0606,2529.5,2529.4,3.95337584]
[1750380947761,10.0606,2529.5,2529.4,3.95337584]
[1750380948205,16.4796,2529.5,2529.4,3.95337584]
[1750380948494,1.652,2529.6,2529.5,3.95335046]
[1750380948672,8.1316,2529.6,2529.5,3.95335046]
[1750380952515,10.0606,2529.5,2529.2,0.7954]
[1750380952671,10.0606,2529.5,2529.4,3.95350676]
[1750380952871,16.4796,2529.5,2529.4,3.95350676]
[1750380953619,0.7606,2530.5,2529.8,0.0359]
[1750380953821,6.418,2530.4,2530.3,3.95197915]
[1750380953972,16.4786,2530.4,2530.3,3.95197915]
[1750380955014,6.4786,2530.4,2530.3,3.95197915]
[1750380956909,6.418,2530.4,2530.3,3.95210054]
[1750380957115,16.418,2530.4,2530.3,3.95210054]
[1750380957301,16.418,2530.4,2530.2,3.95225673]
[1750380957302,18.12646,2530.4,2530.2,3.95217947]
[1750380957502,0.0606,2530.3,2530.2,3.95217947]
[1750380960383,6.417,2530.3,2530.2,3.95217947]
[1750380960740,7.55194762,2530.8,2530.6,3.95163202]
[1750380960741,10.0606,2530.7,2530.6,3.95163202]
[1750380961023,17.7295,2530.7,2530.6,3.95163202]
[1750380961223,11.2519,2530.7,2530.6,3.95163202]
[1750380961522,6.417,2530.7,2530.6,3.95163202]
[1750380962023,6.4776,2530.7,2530.6,3.95163202]
[1750380962224,1.651,2530.8,2530.7,3.95147587]
[1750380962387,18.1286,2530.8,2530.7,3.95147587]
[1750380964740,18.1276,2530.8,2530.7,3.95147587]
[1750380964917,18.067,2530.8,2530.7,3.95147587]
[1750380965345,18.1276,2530.8,2530.7,3.95147587]
[1750380966715,10.0,2530.8,2530.7,3.95147587]
[1750380966922,16.416,2530.8,2530.7,3.95147587]
[1750380967619,2.4258,2531.2,2531.1,3.9508514]
[1750380967620,0.8334,2531.2,2531.1,3.9508514]
[1750380967819,1.651,2531.3,2531.2,3.95069532]
[1750380968018,18.1256,2531.3,2531.2,3.95069532]
[1750380968740,21.71906,2531.3,2531.2,3.95069532]
[1750380969356,11.66046,2531.3,2531.1,3.95078598]
[1750380969535,0.0586,2531.2,2531.1,3.95078598]
[1750380969731,8.067,2531.3,2531.2,3.95069532]
[1750380970059,8.1256,2531.3,2531.2,3.95069532]
[1750380970356,1.7096,2531.3,2531.2,3.95069532]
[1750380970557,8.1246,2531.3,2531.2,3.95069532]
[1750380971039,8.066,2531.3,2531.2,3.95069532]
[1750380971211,1.7096,2531.3,2531.2,3.95069532]
[1750380971416,8.1246,2531.3,2531.2,3.95069532]
[1750380971616,8.066,2531.3,2531.2,3.95069532]
[1750380972114,0.0586,2531.5,2531.3,3.95053924]
[1750380972313,0.0586,2531.6,2531.3,3.95046873]
[1750380972541,10.0586,2531.4,2531.3,3.95046873]
[1750380972745,10.0586,2531.4,2531.1,4.75224777]
[1750380972914,16.4736,2531.3,2531.2,3.9506165]
[1750380973770,0.0586,2531.1,2531.0,3.95089905]
[1750380973919,6.4736,2531.1,2531.0,3.95089905]
[1750380974268,6.4736,2531.1,2530.4,1.65]
[1750380974269,0.0586,2530.8,2530.6,3.95150585]
[1750380974476,10.0,2530.6,2530.5,3.95172064]
[1750380974750,10.0586,2530.6,2530.5,3.95172064]
[1750380975342,10.0586,2530.6,2530.2,0.8237]
[1750380975579,6.4746,2530.5,2530.4,3.95194435]
[1750380975865,6.4736,2530.5,2530.4,3.95194435]
[1750380976217,16.4736,2530.5,2530.4,3.95194435]
[1750380976424,8.06236,2530.5,2530.3,3.95209625]
[1750380976634,0.0586,2530.4,2530.3,3.95209625]
[1750380977324,6.4736,2530.5,2530.4,3.95194435]
[1750380977548,2.5083,2530.7,2530.6,3.95163202]
[1750380977757,8.9253,2530.7,2530.6,3.95163202]
[1750380979355,0.0586,2530.5,2530.4,3.95186633]
[1750380979659,6.4766,2530.5,2530.4,3.95186633]
[1750380979824,16.4766,2530.5,2530.4,3.95186633]
[1750380980024,0.0586,2530.4,2530.3,3.95195595]
[1750380981159,16.418,2530.5,2530.4,3.95194435]
[1750380981359,16.4766,2530.5,2530.4,3.95194435]
[1750380985128,10.0,2530.4,2530.0,0.7893]
[1750380985360,10.0,2530.4,2529.4,3.9534393]
[1750380985361,16.4736,2530.3,2530.2,3.95225673]
[1750380986353,16.415,2530.3,2530.2,3.95225673]
[1750380987558,10.0,2530.3,2530.2,3.95225673]
[1750380990279,10.0,2530.3,2530.2,4.8181037]
[1750380991866,10.0,2530.3,2530.2,3.95225673]
[1750380992985,0.0586,2530.9,2530.8,3.95131974]
[1750380993312,16.4736,2530.9,2530.8,3.95131974]
[1750380994353,10.0586,2530.9,2530.8,3.95131974]
[1750380994571,0.8551,2530.8,2530.7,3.95139492]
[1750380995976,0.0586,2530.8,2530.7,3.95139492]
[1750381000194,10.0586,2530.8,2530.7,3.95139492]
[1750381004253,6.4736,2530.8,2530.7,3.95139492]
[1750381006093,6.4736,2530.8,2530.3,0.783]
[1750381006379,6.4736,2530.8,2529.4,5.13191348]
[1750381006380,10.7658,2530.5,2529.6,4.74298983]
[1750381006541,10.0,2530.3,2530.1,3.95240652]
[1750381006742,16.4783,2530.2,2530.1,3.95240652]
[1750381007239,16.4783,2530.2,2530.0,3.95249584]
[1750381007445,0.0623,2530.1,2530.0,3.95249584]
[1750381009041,0.0623,2530.1,2529.8,3.95276178]
[1750381009042,0.8287,2530.0,2529.8,3.95276178]
[1750381009243,7.1824,2530.0,2529.8,3.95276178]
[1750381009482,10.0,2529.9,2529.5,3.95325505]
[1750381009665,10.0,2529.9,2529.2,1.65]
[1750381009666,10.0,2529.7,2529.2,0.7654]
[1750381009867,0.0623,2529.4,2529.2,3.95372465]
[1750381010070,7.1851,2529.6,2529.2,3.95372465]
[1750381010071,6.4793,2529.3,2529.2,3.95372465]
[1750381010770,6.417,2529.3,2529.1,3.95390742]
[1750381010978,10.0623,2529.2,2529.0,3.95405725]
[1750381011157,16.4823,2529.1,2529.0,3.95405725]
[1750381012583,16.42,2529.1,2529.0,3.95405725]
[1750381015691,16.419,2529.1,2529.0,3.95405725]
[1750381018886,16.4813,2529.1,2529.0,3.95405725]
[1750381019088,16.4813,2529.1,2528.9,3.95425677]
[1750381019089,0.0623,2529.0,2528.9,3.95425677]
[1750381020075,0.0623,2529.0,2528.8,3.9543743]
[1750381020277,6.4803,2528.9,2528.8,3.9543743]
[1750381020477,6.418,2528.9,2528.8,3.9543743]
[1750381021187,6.4803,2528.9,2528.8,3.9543743]
[1750381023811,6.418,2528.9,2528.8,3.9543743]
[1750381024314,10.7758,2529.1,2528.9,3.95428842]
[1750381024515,12.4901,2529.1,2529.0,3.95413206]
[1750381024716,18.9111,2529.1,2528.9,3.95419864]
[1750381024883,0.0623,2529.0,2528.8,3.95435915]
[1750381025084,6.42,2528.9,2528.8,3.95435915]
[1750381025280,6.4823,2528.9,2528.8,3.95435915]
[1750381025821,0.0623,2528.8,2528.7,3.95449308]
[1750381026718,6.42,2528.9,2528.8,3.95444479]
[1750381026918,6.4821,2528.9,2528.8,3.95444479]
[1750381027924,11.7141,2529.1,2529.0,3.95413206]
[1750381028118,18.1341,2529.1,2529.0,3.95413206]
[1750381028527,16.422,2529.1,2529.0,3.95413206]
[1750381028721,16.4841,2529.1,2529.0,3.95413206]
[1750381030835,10.0,2529.0,2528.9,3.95423379]
[1750381032129,1.7151,2529.2,2529.1,3.95397572]
[1750381032331,8.1461,2529.2,2529.1,3.95397572]
[1750381033228,10.7685,2529.5,2529.2,3.95381572]
[1750381033407,10.0621,2529.3,2529.2,3.95381572]
[1750381033929,0.0621,2529.4,2528.8,3.95444479]
[1750381034121,8.084,2529.3,2528.8,4.43621927]
[1750381034317,8.1461,2529.3,2529.2,3.95380093]
[1750381034524,8.084,2529.3,2529.1,3.95389427]
[1750381034834,0.0621,2529.2,2529.1,3.95389427]
[1750381035412,8.084,2529.3,2529.2,3.95381938]
[1750381035413,1.653,2529.3,2529.2,3.95381938]
[1750381035596,0.0621,2529.4,2529.2,3.95381938]
[1750381035801,8.082,2529.3,2529.2,3.95381938]
[1750381036338,18.082,2529.3,2529.2,3.95381938]
[1750381036706,18.1441,2529.3,2529.1,3.95389057]
[1750381036911,0.0621,2529.2,2529.1,3.95389057]
[1750381037436,0.0621,2529.2,2529.0,3.9540547]
[1750381037630,16.4901,2529.1,2529.0,3.9540547]
[1750381038733,16.428,2529.1,2529.0,3.9540547]
[1750381039852,10.0,2529.1,2529.0,3.9540547]
[1750381040051,16.427,2529.1,2529.0,3.9540547]
[1750381042519,16.4891,2529.1,2529.0,3.9540547]
[1750381043049,16.427,2529.1,2529.0,3.9540547]
[1750381045337,16.4851,2529.1,2529.0,3.9540547]
[1750381045951,16.423,2529.1,2529.0,3.9540547]
[1750381046550,10.0,2529.1,2529.0,3.9540547]
[1750381046752,16.422,2529.1,2529.0,3.9540547]
[1750381047259,10.0,2529.1,2529.0,3.9540547]
[1750381047431,16.421,2529.1,2529.0,3.9540547]
[1750381047632,16.4831,2529.1,2529.0,3.9540547]
[1750381050232,0.0621,2529.0,2528.9,3.95420505]
[1750381050437,0.0621,2529.0,2528.6,3.95466489]
[1750381050631,0.0621,2528.8,2528.7,3.95459898]
[1750381050836,6.4821,2528.8,2528.7,3.95459898]
[1750381051044,6.4821,2528.8,2528.6,3.95467217]
[1750381051255,0.0621,2528.7,2528.6,3.95467217]
[1750381051457,6.42,2528.8,2528.5,3.95491168]
[1750381051662,7.1926,2528.8,2528.5,3.95491168]
[1750381051864,0.0621,2528.7,2528.6,3.95464792]
[1750381052038,7.1926,2528.8,2528.6,3.95464792]
[1750381052239,0.0621,2528.7,2528.6,3.95464792]
[1750381052547,6.42,2528.8,2528.7,3.95460117]
[1750381053250,6.4821,2528.8,2528.7,3.95460117]
[1750381054752,10.0,2528.8,2528.7,3.95460117]
[1750381055068,16.422,2528.8,2528.7,3.95460117]
[1750381055628,16.422,2528.8,2528.7,4.77200117]
[1750381055629,10.0,2528.8,2528.7,4.77200117]
[1750381055878,16.421,2528.8,2528.7,4.77200117]
[1750381056868,16.421,2528.8,2528.7,3.95460117]
[1750381057547,16.4791,2528.8,2528.7,3.95460117]
[1750381057754,16.4791,2528.8,2528.6,3.9547335]
[1750381057755,16.421,2528.8,2528.6,3.9547335]
[1750381057942,0.0581,2528.7,2528.6,3.9547335]
[1750381059360,16.421,2528.8,2528.7,3.95460117]
[1750381060476,10.0,2528.8,2528.7,3.95460117]
[1750381060693,0.0581,2529.4,2529.0,3.95413206]
[1750381060694,1.653,2529.1,2529.0,3.95413206]
[1750381060897,18.1311,2529.1,2529.0,3.95413206]
[1750381062397,10.0,2529.0,2528.9,3.95417228]
[1750381062571,0.0581,2529.0,2528.9,3.95417228]
[1750381064012,10.0581,2529.0,2528.9,3.95417228]
[1750381065203,0.0581,2529.0,2528.9,3.95417228]
[1750381065386,8.1311,2529.1,2529.0,3.95413206]